bitfinex-derivatives/quotes_BTCF0:USTF0_20250213
["timestamp","ask_amount","ask_price","bid_price","bid_amount"]
[1739457380121,0.08376,95857.0,95845.0,0.3608]
[1739457380325,0.08376,95857.0,95845.0,0.5694384]
[1739457380514,0.12553023,95855.0,95845.0,0.3608]
[1739457380719,0.3608,95852.0,95843.0,0.0767]
[1739457381126,0.3608,95852.0,95845.0,0.001]
[1739457381322,0.0838,95851.0,95845.0,0.003]
[1739457381519,0.10600235,95851.0,95845.0,0.003]
[1739457381827,0.02220235,95851.0,95845.0,0.003]
[1739457382028,0.3608,95852.0,95845.0,0.003]
[1739457382323,0.0838,95851.0,95845.0,0.003]
[1739457382626,0.1057462,95851.0,95845.0,0.003]
[1739457382828,0.0219462,95851.0,95845.0,0.001]
[1739457383126,0.3608,95852.0,95845.0,0.001]
[1739457383320,0.08364,95851.0,95845.0,0.001]
[1739457383718,0.10589599,95851.0,95845.0,0.003]
[1739457383923,0.02225599,95851.0,95845.0,0.002]
[1739457384124,0.3608,95852.0,95845.0,0.003]
[1739457384330,0.08352,95851.0,95845.0,0.003]
[1739457385128,0.10328507,95851.0,95845.0,0.003]
[1739457385331,0.01976507,95851.0,95845.0,0.003]
[1739457385531,0.3608,95852.0,95845.0,0.003]
[1739457385715,0.08352,95851.0,95845.0,0.003]
[1739457387232,0.2086364,95847.0,95845.0,0.003]
[1739457387430,0.2086364,95847.0,95827.0,0.3608]
[1739457387431,0.2086595,95836.0,95827.0,0.3608]
[1739457387626,0.3608,95846.0,95827.0,0.3608]
[1739457387925,0.12553023,95837.0,95827.0,0.3608]
[1739457388131,0.2086651,95834.0,95827.0,0.3608]
[1739457388722,0.229,95836.0,95819.0,0.3608]
[1739457388922,0.12553023,95829.0,95814.0,0.3663069]
[1739457389124,0.3608,95815.0,95807.0,0.00056]
[1739457389440,0.3608,95815.0,95798.0,0.01957786]
[1739457389441,0.3608,95810.0,95777.0,0.01981088]
[1739457389633,0.1732,95789.0,95778.0,0.3608]
[1739457389824,0.1732,95782.0,95774.0,0.31769943]
[1739457390127,0.3608,95785.0,95774.0,0.33769943]
[1739457390335,0.18856431,95790.0,95774.0,0.33769943]
[1739457390725,0.3608,95788.0,95774.0,0.33769943]
[1739457391124,0.3608,95788.0,95777.0,0.007]
[1739457391329,0.08452,95787.0,95777.0,0.007]
[1739457391630,0.08472,95786.0,95779.0,0.2087822]
[1739457391928,0.18856431,95790.0,95777.0,0.003]
[1739457392136,0.18856431,95790.0,95784.0,0.3608]
[1739457392325,0.00015653,95793.0,95774.0,0.32469943]
[1739457392532,0.18856431,95790.0,95777.0,0.3608]
[1739457393229,0.3608,95785.0,95777.0,0.003]
[1739457393441,0.2087821,95780.0,95777.0,0.003]
[1739457393828,0.72284001,95785.0,95777.0,0.003]
[1739457394035,0.08488,95784.0,95779.0,0.002]
[1739457394628,0.08488,95784.0,95777.0,0.006]
[1739457395235,0.18856431,95790.0,95782.0,0.3608]
[1739457395432,0.00015653,95793.0,95782.0,0.3608]
[1739457395636,0.18856431,95792.0,95779.0,0.002]
[1739457395833,0.54936431,95792.0,95779.0,0.002]
[1739457396138,0.5695764,95783.0,95779.0,0.002]
[1739457396337,0.3608,95783.0,95779.0,0.002]
[1739457396534,0.08492,95782.0,95779.0,0.002]
[1739457397029,0.08492,95782.0,95777.0,0.006]
[1739457397231,0.2087802,95781.0,95777.0,0.006]
[1739457397435,0.2087859,95778.0,95777.0,0.003]
[1739457398231,0.2087859,95778.0,95777.0,0.006]
[1739457398432,0.2087859,95778.0,95777.0,0.003]
[1739457398633,0.2087859,95778.0,95756.0,0.3608]
[1739457398831,0.3608,95780.0,95777.0,0.003]
[1739457399040,0.08476,95779.0,95777.0,0.003]
[1739457399236,0.08476,95779.0,95777.0,0.006]
[1739457399534,0.08476,95779.0,95777.0,0.016]
[1739457400047,0.2935443,95779.0,95777.0,0.016]
[1739457400241,0.3608,95780.0,95762.0,0.01]
[1739457400429,0.5696186,95763.0,95762.0,0.19]
[1739457401141,0.5696186,95763.0,95762.0,0.12446108]
[1739457401343,0.38063722,95763.0,95747.0,0.34]
[1739457401537,0.38063722,95763.0,95747.0,0.19]
[1739457401538,0.3608,95751.0,95747.0,0.19]
[1739457401843,0.08456,95750.0,95747.0,0.19]
[1739457402232,0.08456,95750.0,95732.0,0.3588855]
[1739457402233,0.08456,95750.0,95732.0,0.15]
[1739457402444,0.3608,95733.0,95732.0,0.02]
[1739457403237,0.38026651,95733.0,95732.0,0.02]
[1739457403439,0.38026651,95733.0,95732.0,0.023]
[1739457404335,0.38126651,95733.0,95732.0,0.023]
[1739457404838,0.38026651,95733.0,95732.0,0.13]
[1739457405037,0.74306651,95733.0,95732.0,0.133]
[1739457405643,0.74206651,95733.0,95700.0,0.1]
[1739457405835,0.3608,95701.0,95677.0,0.01997256]
[1739457406031,0.3608,95684.0,95670.0,0.54936431]
[1739457406335,0.3608,95698.0,95697.0,0.2089626]
[1739457406535,0.3608,95709.0,95688.0,0.0522453]
[1739457406536,0.3608,95709.0,95708.0,0.2089386]
[1739457407242,0.001,95684.0,95670.0,0.18856431]
[1739457407432,0.001,95684.0,95682.0,0.2089943]
[1739457407838,0.3608,95687.0,95661.0,0.0522601]
[1739457408028,0.3608,95675.0,95655.0,0.3608]
[1739457408232,0.3608,95660.0,95627.0,0.3608]
[1739457408430,0.3608,95637.0,95627.0,0.3608]
[1739457408938,0.3608,95637.0,95627.0,0.3603]
[1739457408939,0.20611297,95637.0,95627.0,0.3603]
[1739457409336,0.41520677,95637.0,95620.0,0.2091303]
[1739457409541,0.3608,95610.0,95568.0,0.63073879]
[1739457409736,0.37712862,95626.0,95532.0,0.2864]
[1739457409737,0.7216,95570.0,95532.0,0.2864]
[1739457409944,0.18856431,95554.0,95537.0,0.3608]
[1739457410243,0.01978715,95570.0,95569.0,0.02092]
[1739457410244,0.3608,95570.0,95569.0,0.02092]
[1739457410642,0.38088022,95570.0,95569.0,0.02092]
[1739457410841,0.3608,95570.0,95569.0,0.2301622]
[1739457411238,0.17593188,95570.0,95569.0,0.02092]
[1739457411442,0.18293188,95570.0,95569.0,0.02092]
[1739457412142,0.2192751,95554.0,95553.0,0.46715406]
[1739457412340,0.72369305,95554.0,95546.0,0.0006]
[1739457412539,0.72369305,95554.0,95518.0,0.48093007]
[1739457412540,0.7216,95554.0,95518.0,0.48149007]
[1739457412741,0.3608,95554.0,95553.0,0.2511273]
[1739457413141,0.3608,95581.0,95569.0,0.001]
[1739457413348,0.00124001,95616.0,95598.0,0.04185]
[1739457413645,0.3608,95645.0,95615.0,0.40265]
[1739457413646,0.01947007,95645.0,95615.0,0.40265]
[1739457413844,0.2090608,95652.0,95638.0,0.3608]
[1739457414036,0.3608,95656.0,95638.0,0.3608]
[1739457414237,0.09295687,95655.0,95651.0,0.3608]
[1739457414437,0.00015687,95655.0,95651.0,0.3608]
[1739457414642,0.02040966,95655.0,95651.0,0.3608]
[1739457414843,0.00015687,95655.0,95651.0,0.9306621]
[1739457415044,0.007,95652.0,95651.0,0.9306621]
[1739457415550,0.01,95727.0,95651.0,0.9725121]
[1739457415849,0.39201813,95800.0,95739.0,0.3608]
[1739457416040,0.3608,95789.0,95779.0,0.1227876]
[1739457416240,0.3608,95789.0,95740.0,0.29201813]
[1739457416241,0.2087987,95772.0,95771.0,0.3608]
[1739457416541,0.39201813,95800.0,95761.0,0.01]
[1739457416542,0.3608,95778.0,95761.0,0.01]
[1739457416745,0.01965976,95772.0,95770.0,0.3608]
[1739457417547,0.3,95772.0,95770.0,0.3608]
[1739457417848,0.2088226,95761.0,95760.0,0.00015659]
[1739457418143,0.50084073,95761.0,95751.0,0.2627666]
[1739457418342,0.3608,95757.0,95747.0,0.3608]
[1739457418543,0.29201813,95750.0,95747.0,0.3608]
[1739457419144,0.29201813,95760.0,95747.0,0.3608]
[1739457419345,0.00015668,95758.0,95757.0,0.01]
[1739457419852,0.00015668,95758.0,95755.0,0.56654548]
[1739457420046,0.56321237,95761.0,95760.0,0.2088248]
[1739457420348,0.1,95800.0,95777.0,0.2087866]
[1739457420546,0.39201813,95800.0,95778.0,0.7164]
[1739457420751,0.2087572,95791.0,95778.0,0.7164]
[1739457421048,0.3608,95798.0,95778.0,0.7164]
[1739457421236,0.39201813,95800.0,95778.0,0.7164]
[1739457421237,0.1,95800.0,95778.0,0.7164]
[1739457421439,0.00015668,95792.0,95778.0,0.7164]
[1739457421637,0.27351091,95783.0,95778.0,0.7164]
[1739457421843,0.27351091,95783.0,95772.0,0.00015668]
[1739457422252,0.3608,95781.0,95772.0,0.00015668]
[1739457422449,0.2087838,95779.0,95772.0,0.00015668]
[1739457422753,0.005,95758.0,95740.0,0.29358476]
[1739457422948,0.3658,95758.0,95740.0,0.29358476]
[1739457423349,0.3608,95758.0,95754.0,0.2088376]
[1739457423551,0.3608,95763.0,95756.0,0.2088332]
[1739457423940,0.3608,95763.0,95760.0,0.2088243]
[1739457424142,0.3608,95781.0,95780.0,0.2087812]
[1739457424347,0.3608,95790.0,95789.0,0.2087615]
[1739457424650,0.15237171,95801.0,95798.0,0.2087411]
[1739457425047,0.15237171,95801.0,95764.0,0.3608]
[1739457425357,0.3608,95782.0,95777.0,0.208787]
[1739457425651,0.3608,95782.0,95778.0,0.00015659]
[1739457426054,0.3608,95782.0,95750.0,0.29201813]
[1739457426351,0.3608,95755.0,95745.0,0.0962]
[1739457426657,0.3608,95755.0,95754.0,0.2088379]
[1739457426854,0.001,95763.0,95762.0,0.2088204]
[1739457427157,0.31895,95756.0,95754.0,0.208836]
[1739457427556,0.31895,95756.0,95754.0,0.508836]
[1739457427853,0.3608,95764.0,95763.0,0.2088182]
[1739457428248,0.3608,95764.0,95763.0,0.5088182]
[1739457428561,0.00015659,95772.0,95771.0,0.2088008]
[1739457428751,0.00015659,95772.0,95771.0,0.5696008]
[1739457428946,0.00015659,95772.0,95771.0,0.8696008]
[1739457429144,0.36095659,95772.0,95765.0,0.2088138]
[1739457429348,0.36095659,95772.0,95771.0,0.2088008]
[1739457429852,0.36095659,95772.0,95771.0,0.2118008]
[1739457430248,0.36095659,95772.0,95771.0,0.5118008]
[1739457430448,0.36095659,95772.0,95771.0,0.2118008]
[1739457430849,0.36095659,95772.0,95771.0,0.2088008]
[1739457431043,0.36095659,95772.0,95771.0,0.003]
[1739457431245,0.38184659,95772.0,95771.0,0.003]
[1739457432153,0.38184659,95772.0,95740.0,0.00156663]
[1739457432360,0.3608,95741.0,95740.0,0.00156663]
[1739457432558,0.3608,95741.0,95740.0,0.21043503]
[1739457432765,0.3608,95741.0,95740.0,0.2088684]
[1739457433652,0.38269,95741.0,95740.0,0.2158684]
[1739457433951,0.2088751,95737.0,95720.0,0.00156675]
[1739457434151,0.001,95741.0,95725.0,0.3608]
[1739457434347,0.3608,95730.0,95720.0,0.00216675]
[1739457434552,0.2357,95729.0,95728.0,0.2088943]
[1739457434857,0.2357,95729.0,95720.0,0.00156675]
[1739457435058,0.2089317,95711.0,95710.0,0.00168649]
[1739457435263,0.5697317,95711.0,95710.0,0.00168649]
[1739457435456,0.3608,95711.0,95710.0,0.00168649]
[1739457436854,0.3618,95711.0,95710.0,0.00168649]
[1739457437255,0.38269,95711.0,95710.0,0.00168649]
[1739457437455,0.38269,95711.0,95690.0,0.00156725]
[1739457437663,0.38169,95691.0,95690.0,0.00156725]
[1739457438166,0.4416,95691.0,95690.0,0.00156725]
[1739457438661,0.46249,95691.0,95690.0,0.00156725]
[1739457438858,0.001,95691.0,95690.0,0.21054475]
[1739457439060,0.3618,95691.0,95690.0,0.21054475]
[1739457439260,0.4396,95691.0,95690.0,0.21054475]
[1739457439451,0.46049,95691.0,95690.0,0.21054475]
[1739457439651,0.46049,95691.0,95690.0,0.00156725]
[1739457439852,0.3341379,95691.0,95690.0,0.00156725]
[1739457440158,9e-08,95706.0,95690.0,0.30156725]
[1739457440366,0.3608,95733.0,95732.0,0.2088858]
[1739457440662,0.36140001,95744.0,95722.0,0.3608]
[1739457440855,0.02089,95740.0,95739.0,0.2088706]
[1739457441054,0.3608,95754.0,95742.0,0.208864]
[1739457441262,0.3608,95746.0,95730.0,0.29201813]
[1739457441449,0.38169,95731.0,95728.0,0.2088925]
[1739457441652,0.38169,95731.0,95725.0,0.00015669]
[1739457441653,0.2297889,95726.0,95725.0,0.00015669]
[1739457442060,0.2088989,95726.0,95725.0,0.00015669]
[1739457442263,0.2297889,95726.0,95725.0,0.00015669]
[1739457442973,0.02189,95726.0,95725.0,0.001]
[1739457443468,0.3608,95729.0,95714.0,0.3608]
[1739457443768,0.3608,95729.0,95728.0,0.2088946]
[1739457444858,0.3608,95759.0,95742.0,0.208864]
[1739457445059,0.2088111,95767.0,95744.0,0.2088597]
[1739457445371,0.2088111,95767.0,95744.0,0.5088597]
[1739457445564,9e-08,95745.0,95744.0,0.5088597]
[1739457446366,0.00200009,95745.0,95744.0,0.5088597]
[1739457446562,9e-08,95745.0,95744.0,0.5088597]
[1739457447869,8e-08,95754.0,95753.0,0.20884]
[1739457448068,8e-08,95754.0,95753.0,0.56964]
[1739457448263,0.00156677,95790.0,95778.0,0.2087846]
[1739457448465,0.00156677,95790.0,95782.0,0.3608]
[1739457448868,0.00156677,95790.0,95788.0,0.2087625]
[1739457449664,0.21299243,95796.0,95794.0,0.2087486]
[1739457449863,0.21299243,95796.0,95794.0,0.5695486]
[1739457450167,0.21299243,95796.0,95780.0,0.37401813]
[1739457450168,0.3608,95795.0,95784.0,0.2087715]
[1739457450367,0.3608,95795.0,95780.0,0.37401813]
[1739457450368,0.3608,95795.0,95780.0,0.0814]
[1739457450567,0.2087591,95791.0,95780.0,0.0814]
[1739457450872,0.3608,95795.0,95780.0,0.0814]
[1739457451063,0.569581,95781.0,95771.0,0.2087998]
[1739457451566,0.3608,95780.0,95761.0,0.0814]
[1739457451762,0.3608,95762.0,95737.0,0.3608]
[1739457451971,0.052191,95788.0,95738.0,0.0836]
[1739457451972,0.2088621,95743.0,95738.0,0.0836]
[1739457452171,0.3608,95750.0,95738.0,0.0836]
[1739457452362,0.3608,95762.0,95741.0,0.3608]
[1739457452567,0.3608,95762.0,95754.0,0.2088371]
[1739457452963,0.02089,95755.0,95741.0,0.3608]
[1739457453169,0.02089,95742.0,95738.0,0.0836]
[1739457453370,0.02089,95739.0,95738.0,0.0836]
[1739457454165,0.02089,95739.0,95738.0,0.003]
[1739457454775,0.02089,95739.0,95738.0,0.001]
[1739457455368,0.02089,95739.0,95738.0,0.003]
[1739457455763,0.38169,95739.0,95738.0,0.003]
[1739457455968,0.38169,95739.0,95734.0,0.0001566]
[1739457455969,0.2088793,95735.0,95734.0,0.0001566]
[1739457456173,0.2088793,95735.0,95701.0,0.3608]
[1739457456174,0.2088862,95732.0,95701.0,0.3608]
[1739457456367,0.02089,95725.0,95718.0,0.2089161]
[1739457456570,0.02089,95725.0,95701.0,0.3608]
[1739457457074,0.02089,95725.0,95709.0,0.2089349]
[1739457457273,0.3608,95712.0,95701.0,0.3608]
[1739457457577,0.3608,95712.0,95711.0,0.2089317]
[1739457458382,0.00015669,95717.0,95716.0,0.2089208]
[1739457459567,0.00215669,95717.0,95716.0,0.2089208]
[1739457459774,0.02304669,95717.0,95716.0,0.2089208]
[1739457459974,0.02304669,95717.0,95701.0,0.3608]
[1739457460174,0.02089,95710.0,95701.0,0.3608]
[1739457460374,0.00215669,95717.0,95715.0,0.2089211]
[1739457460375,0.00315669,95717.0,95715.0,0.2089211]
[1739457460670,0.18480148,95716.0,95715.0,0.2089211]
[1739457460877,0.20569148,95716.0,95695.0,0.08416725]
[1739457461074,0.02089,95706.0,95705.0,0.2089431]
[1739457461281,0.39372328,95716.0,95703.0,0.07055516]
[1739457461578,0.02089,95706.0,95703.0,0.07055516]
[1739457462084,0.39372328,95716.0,95707.0,0.20894]
[1739457462472,0.2298294,95708.0,95700.0,0.3608]
[1739457462675,0.02089,95701.0,95700.0,0.5697557]
[1739457462983,0.02089,95701.0,95700.0,0.3608]
[1739457463189,0.2089732,95692.0,95663.0,0.3608]
[1739457463377,0.5906632,95692.0,95688.0,0.2089819]
[1739457463577,0.02089,95685.0,95684.0,0.2089906]
[1739457463881,0.02089,95686.0,95685.0,0.2089885]
[1739457464386,0.3618,95692.0,95691.0,0.2089754]
[1739457464579,0.001,95692.0,95691.0,0.2089754]
[1739457464976,0.2089788,95690.0,95688.0,0.2089817]
[1739457465175,0.02089,95690.0,95686.0,0.083]
[1739457465383,0.02089,95687.0,95686.0,0.083]
[1739457465680,0.3608,95699.0,95691.0,0.001]
[1739457466071,0.2089653,95696.0,95693.0,0.2089707]
[1739457466279,0.2089653,95696.0,95686.0,0.083]
[1739457466280,0.001,95690.0,95686.0,0.084]
[1739457466479,0.001,95690.0,95689.0,0.2089797]
[1739457466776,0.00015678,95700.0,95699.0,0.2089579]
[1739457467280,0.208964,95697.0,95692.0,0.2089719]
[1739457467473,0.2089717,95693.0,95688.0,0.2089812]
[1739457467673,0.2089717,95693.0,95689.0,0.2089781]
[1739457467978,0.3608,95694.0,95692.0,0.2089725]
[1739457468381,0.3608,95694.0,95692.0,0.2099725]
[1739457468886,0.3608,95694.0,95692.0,0.2089725]
[1739457469383,0.00015678,95700.0,95699.0,0.2089579]
[1739457470876,0.00015678,95700.0,95686.0,0.43375666]
[1739457471077,0.00015678,95700.0,95686.0,0.43311666]
[1739457471380,0.3608,95690.0,95653.0,0.3608]
[1739457471582,0.2090106,95675.0,95669.0,0.2090232]
[1739457471783,0.2090161,95673.0,95654.0,0.0807]
[1739457472281,0.209089,95639.0,95630.0,0.14152413]
[1739457472483,0.2091034,95633.0,95629.0,0.2091106]
[1739457472675,0.3608,95638.0,95617.0,0.0834]
[1739457472879,0.5698924,95638.0,95617.0,0.0834]
[1739457473276,0.5698924,95638.0,95634.0,0.2090989]
[1739457473488,0.2090938,95637.0,95634.0,0.2090989]
[1739457473785,0.3618,95638.0,95621.0,0.3608]
[1739457473988,0.001,95638.0,95637.0,0.2090933]
[1739457474584,0.3608,95641.0,95631.0,0.209106]
[1739457474783,0.2091206,95625.0,95622.0,0.0813]
[1739457474987,0.3608,95633.0,95622.0,0.0813]
[1739457475185,0.3608,95633.0,95621.0,0.2091275]
[1739457475380,0.3608,95622.0,95610.0,0.08226828]
[1739457475583,0.3608,95622.0,95611.0,0.2091498]
[1739457475886,0.3608,95622.0,95618.0,0.2091337]
[1739457476590,0.3608,95622.0,95619.0,0.2091308]
[1739457477090,0.3608,95622.0,95610.0,0.08226828]
[1739457477291,0.2091448,95614.0,95610.0,0.00156828]
[1739457477491,0.3618,95622.0,95610.0,0.00156828]
[1739457477693,0.209132,95620.0,95618.0,0.001]
[1739457477888,0.2091502,95611.0,95610.0,0.00156828]
[1739457478088,0.2091721,95601.0,95600.0,0.1]
[1739457479290,0.3608,95603.0,95600.0,0.3091727]
[1739457479998,0.001,95601.0,95600.0,0.3091727]
[1739457480699,0.001,95603.0,95600.0,0.1]
[1739457480901,0.3608,95611.0,95601.0,0.285072]
[1739457481099,0.2091651,95605.0,95603.0,0.209167]
[1739457481294,0.3608,95610.0,95600.0,0.101]
[1739457481499,0.3608,95601.0,95578.0,0.07758884]
[1739457481698,0.2092257,95577.0,95560.0,0.0774]
[1739457481897,0.3608,95574.0,95560.0,0.1533]
[1739457482500,0.2092447,95568.0,95562.0,0.2092568]
[1739457482707,0.3608,95574.0,95562.0,0.2092568]
[1739457482905,0.5700325,95574.0,95562.0,0.2092568]
[1739457483107,0.5700325,95574.0,95568.0,0.2092435]
[1739457483295,0.5710325,95574.0,95568.0,0.2092435]
[1739457483502,0.5710325,95574.0,95560.0,0.1533]
[1739457483806,0.3618,95574.0,95561.0,0.2092579]
[1739457484008,0.2092658,95559.0,95548.0,0.00156982]
[1739457484312,0.3608,95566.0,95564.0,0.2092514]
[1739457484809,0.3608,95566.0,95548.0,0.00156982]
[1739457485000,0.5700859,95549.0,95548.0,0.00156982]
[1739457486312,1.0216,95549.0,95523.0,0.2093419]
[1739457486605,0.3608,95532.0,95522.0,0.00157058]
[1739457486904,0.3608,95541.0,95522.0,0.00157058]
[1739457487108,0.3608,95541.0,95530.0,0.2093272]
[1739457487309,0.3608,95533.0,95522.0,0.00157058]
[1739457487506,0.3608,95523.0,95522.0,0.00157058]
[1739457488306,0.2093845,95504.0,95500.0,0.15]
[1739457488507,0.3608,95504.0,95500.0,0.15]
[1739457488901,0.5701845,95504.0,95500.0,0.15]
[1739457489101,0.3608,95504.0,95500.0,0.15]
[1739457489509,0.3608,95504.0,95502.0,0.2093876]
[1739457490014,0.00015705,95513.0,95512.0,0.209367]
[1739457490212,0.3608,95543.0,95516.0,0.0523395]
[1739457490514,0.3608,95543.0,95541.0,0.2093024]
[1739457490908,0.3608,95543.0,95521.0,0.3608]
[1739457491304,0.3608,95543.0,95541.0,0.2093032]
[1739457491501,0.3608,95562.0,95542.0,0.3608]
[1739457491713,0.3608,95561.0,95551.0,0.2092812]
[1739457492008,0.209275,95554.0,95540.0,0.3608]
[1739457492209,0.209275,95554.0,95542.0,0.2092993]
[1739457492410,0.29201813,95560.0,95531.0,0.36237027]
[1739457492411,0.001,95543.0,95531.0,0.36237027]
[1739457492713,0.001,95543.0,95538.0,0.00015705]
[1739457493014,0.3618,95543.0,95538.0,0.00015705]
[1739457493218,0.2093068,95540.0,95538.0,0.00015705]
[1739457494919,0.2093842,95505.0,95488.0,0.2094194]
[1739457495217,0.2093912,95501.0,95486.0,0.3608]
[1739457495409,0.3608,95505.0,95488.0,0.2094185]
[1739457495611,0.3608,95505.0,95489.0,0.2094154]
[1739457495812,0.3608,95505.0,95486.0,0.3608]
[1739457496013,0.3608,95505.0,95496.0,0.2094007]
[1739457496203,0.3608,95516.0,95486.0,0.3608]
[1739457496204,0.3608,95507.0,95503.0,0.2093863]
[1739457496408,0.3608,95507.0,95496.0,0.2094014]
[1739457496604,0.001,95505.0,95499.0,0.21096516]
[1739457496805,0.001,95505.0,95499.0,0.00157096]
[1739457497001,0.209389,95502.0,95499.0,0.00157096]
[1739457497509,0.3608,95504.0,95499.0,0.00157096]
[1739457498114,0.002,95505.0,95504.0,0.2093846]
[1739457498314,0.3608,95524.0,95515.0,0.2093605]
[1739457498614,0.5701429,95524.0,95515.0,0.3608]
[1739457498814,0.3608,95524.0,95515.0,0.3608]
[1739457499322,0.2093451,95522.0,95515.0,0.3608]
[1739457499517,0.3608,95524.0,95515.0,0.3608]
[1739457499712,0.00015705,95529.0,95524.0,0.2093407]
[1739457500611,0.2093561,95517.0,95516.0,0.0766]
[1739457501212,0.2093561,95517.0,95515.0,0.00115705]
[1739457501908,0.2093561,95517.0,95515.0,0.00015705]
[1739457502203,0.001,95517.0,95516.0,0.002]
[1739457502409,0.001,95517.0,95516.0,0.25785041]
[1739457502604,0.00157107,95525.0,95524.0,0.2093407]
[1739457502820,0.00015705,95529.0,95524.0,0.3608]
[1739457503113,0.2093445,95523.0,95516.0,0.002]
[1739457503313,0.001,95517.0,95516.0,0.2113574]
[1739457503510,0.001,95517.0,95516.0,0.002]
[1739457504121,0.2093583,95516.0,95515.0,0.00215705]
[1739457505019,0.2093583,95516.0,95515.0,0.00015705]
[1739457505511,0.3608,95523.0,95515.0,0.00015705]
[1739457505722,0.3608,95523.0,95517.0,0.2093552]
[1739457505914,0.2093548,95518.0,95516.0,0.002]
[1739457506315,0.2093583,95516.0,95515.0,0.00215705]
[1739457506911,0.2093539,95518.0,95517.0,0.002]
[1739457507113,0.2093539,95518.0,95500.0,0.15]
[1739457507114,0.2093912,95501.0,95500.0,0.15]
[1739457508209,0.5701912,95501.0,95500.0,0.15]
[1739457509719,0.3608,95524.0,95500.0,0.15]
[1739457509919,0.001,95501.0,95500.0,0.151]
[1739457510119,0.001,95501.0,95500.0,0.3603934]
[1739457510817,0.002,95501.0,95500.0,0.151]
[1739457511518,0.001,95501.0,95500.0,0.15]
[1739457512309,0.05094105,95501.0,95500.0,0.14747639]
[1739457512714,0.2093934,95500.0,95499.0,0.00157096]
[1739457514612,0.2103934,95500.0,95499.0,0.00157096]
[1739457515513,0.18493994,95502.0,95499.0,0.00157096]
[1739457515718,0.05094105,95506.0,95499.0,0.00157096]
[1739457515917,0.00015705,95509.0,95508.0,0.2093758]
[1739457516119,0.2093296,95530.0,95528.0,0.2093309]
[1739457516424,0.3608,95548.0,95542.0,0.2093013]
[1739457516629,0.57363583,95566.0,95530.0,0.29201813]
[1739457516630,0.2092786,95553.0,95530.0,0.29201813]
[1739457516832,0.2092786,95553.0,95542.0,0.3608]
[1739457517020,0.2867534,95564.0,95542.0,0.3608]
[1739457517330,0.22799422,95564.0,95542.0,0.3608]
[1739457517519,0.00015705,95552.0,95542.0,0.3608]
[1739457517716,0.57363583,95566.0,95542.0,0.3608]
[1739457517927,0.21283583,95566.0,95554.0,0.3608]
[1739457518121,0.21283583,95566.0,95564.0,0.5700526]
[1739457518317,0.23101586,95566.0,95564.0,0.3608]
[1739457518523,0.21283583,95566.0,95564.0,0.3608]
[1739457519121,0.00015696,95575.0,95564.0,0.3608]
[1739457519416,0.00015696,95575.0,95555.0,0.08015696]
[1739457519621,0.013,95566.0,95555.0,0.08015696]
[1739457519821,0.3608,95562.0,95555.0,0.08015696]
[1739457520027,0.2092658,95559.0,95555.0,0.00015696]
[1739457520228,0.5700706,95556.0,95555.0,6e-08]
[1739457520428,0.3608,95556.0,95543.0,5.256e-05]
[1739457520923,0.007,95566.0,95547.0,0.3608]
[1739457521115,0.3608,95571.0,95555.0,0.3608]
[1739457521316,0.01015696,95575.0,95574.0,0.2092312]
[1739457521732,0.01015696,95575.0,95569.0,0.3608]
[1739457522027,0.00315696,95575.0,95569.0,0.3608]
[1739457522227,0.003,95559.0,95554.0,0.209274]
[1739457522730,0.003,95559.0,95553.0,0.00015696]
[1739457522927,0.209275,95554.0,95553.0,0.00015696]
[1739457523226,0.3608,95554.0,95543.0,5.256e-05]
[1739457523527,0.5700969,95544.0,95543.0,5.256e-05]
[1739457524930,0.3608,95544.0,95489.0,0.3608]
[1739457525128,0.3608,95519.0,95500.0,0.29201813]
[1739457525434,0.209337,95526.0,95509.0,0.2093715]
[1739457525733,0.209337,95526.0,95494.0,0.0806]
[1739457525734,0.3608,95513.0,95494.0,0.0806]
[1739457526028,0.3608,95527.0,95517.0,0.2093561]
[1739457526226,0.00015705,95515.0,95513.0,0.2093648]
[1739457526624,0.002,95519.0,95518.0,0.2093539]
[1739457527024,0.15425507,95517.0,95512.0,0.3608]
[1739457527221,0.2093597,95516.0,95508.0,0.2100145]
[1739457527425,0.15425507,95517.0,95505.0,0.3608]
[1739457528244,0.15425507,95517.0,95514.0,0.209361]
[1739457529435,0.15425507,95517.0,95512.0,0.2093655]
[1739457529633,0.15425507,95517.0,95515.0,0.2093589]
[1739457530329,0.15441212,95524.0,95513.0,0.3608]
[1739457530532,0.15441212,95524.0,95515.0,0.2093591]
[1739457530726,0.15441212,95524.0,95505.0,0.3608]
[1739457530928,0.3608,95520.0,95508.0,0.209375]
[1739457531128,0.15441212,95524.0,95505.0,0.3608]
[1739457531427,0.3608,95519.0,95505.0,0.3608]
[1739457531634,0.2093746,95509.0,95505.0,0.3608]
[1739457531830,0.2093802,95506.0,95505.0,0.3608]
[1739457532035,0.2093962,95499.0,95491.0,0.0775]
[1739457532221,0.3608,95499.0,95494.0,0.2094064]
[1739457532428,0.3608,95499.0,95491.0,0.0775]
[1739457532629,0.3608,95499.0,95486.0,0.5702238]
[1739457532928,0.2094174,95490.0,95485.0,0.0015708]
[1739457533325,0.3608,95504.0,95485.0,0.0015708]
[1739457533526,0.001,95499.0,95485.0,0.0015708]
[1739457533730,0.001,95499.0,95487.0,0.2094199]
[1739457533921,0.001,95499.0,95489.0,0.2094157]
[1739457534131,0.001,95499.0,95496.0,0.3608]
[1739457534329,0.001,95499.0,95493.0,0.3608]
[1739457534637,0.001,95499.0,95497.0,0.209398]
[1739457534834,0.05094153,95498.0,95497.0,0.209398]
[1739457536631,0.05194153,95498.0,95497.0,0.209398]
[1739457538031,0.05194153,95498.0,95497.0,0.570198]
[1739457538339,0.001,95498.0,95497.0,0.570198]
[1739457538951,0.001,95498.0,95497.0,0.209398]
[1739457539129,0.001,95498.0,95494.0,0.3608]
[1739457540141,0.001,95498.0,95487.0,0.2094217]
[1739457540434,0.001,95498.0,95480.0,0.3608]
[1739457540636,0.002,95498.0,95480.0,0.3608]
[1739457540941,0.002,95498.0,95496.0,0.5702017]
[1739457541336,0.001,95498.0,95497.0,0.1967]